fUST/lending_fUST_20251212
["ID","MTS","AMOUNT","RATE_DAILY","PERIOD"]
[398264205,1765474825961,167.4433437,0.0001919,99]
[398264206,1765474826483,167.4433437,0.0001919,99]
[398264207,1765474827068,167.4433437,0.0001919,99]
[398264208,1765474877003,155.79,0.0001,2]
[398264209,1765474926317,153.54,0.0001,2]
[398264211,1765474993548,155.09,0.0001,2]
[398264214,1765475044222,153.59,0.0001,2]
[398264216,1765475112516,154.59,0.0001,2]
[398264218,1765475166232,153.62,0.0001,2]
[398264221,1765475241385,154.29,0.0001,2]
[398264222,1765475284568,153.64,0.0001,2]
[398264225,1765475357812,154.09,0.0001,2]
[398264226,1765475405380,153.65,0.0001,2]
[398264257,1765475432366,-153.65,0.000101,2]
[398264260,1765475432377,-188.66908786,0.00010175,2]
[398264262,1765475432387,-153.65,0.000103,2]
[398264295,1765475432853,-153.65,0.000104,2]
[398264296,1765475432883,-153.65,0.000105,2]
[398264297,1765475432901,-153.65,0.000107,2]
[398264298,1765475432913,-121.17007356,0.000108,2]
[398264299,1765475432926,-32.47992644,0.000108,2]
[398264300,1765475432936,-153.65,0.000109,2]
[398264301,1765475432945,-231.03510774,0.00011031,2]
[398264302,1765475432957,-767.96489226,0.00011031,2]
[398264303,1765475432966,-153.65,0.000111,2]
[398264304,1765475432976,-153.65,0.000112,2]
[398264305,1765475432986,-633.74867826,0.00011299,2]
[398264306,1765475432996,-185.0,0.00011299,2]
[398264307,1765475433005,-153.65,0.000113,2]
[398264308,1765475433015,-2156.0,0.000113,2]
[398264309,1765475433024,-1359.0,0.000113,2]
[398264310,1765475433034,-631.0,0.000113,2]
[398264311,1765475433044,-153.65,0.000115,2]
[398264312,1765475433054,-300.0,0.00011525,2]
[398264313,1765475433064,-92.98713207,0.00011525,2]
[398264314,1765475433076,-207.01286793,0.00011525,2]
[398264315,1765475433085,-300.0,0.00011525,2]
[398264316,1765475433095,-300.0,0.00011525,2]
[398264317,1765475433105,-94.34355444,0.00011525,2]
[398264318,1765475433117,-205.65644556,0.00011525,2]
[398264319,1765475433126,-71.94265631,0.00011525,2]
[398264349,1765475438416,-228.05734369,0.00011525,2]
[398264351,1765475438426,-172.5329902,0.00011525,2]
[398264362,1765475438522,-127.4670098,0.00011525,2]
[398264364,1765475438531,-300.0,0.00011525,2]
[398264366,1765475438540,-300.0,0.00011525,2]
[398264368,1765475438550,-300.0,0.00011525,2]
[398264370,1765475438560,-300.0,0.00011525,2]
[398264372,1765475438569,-300.0,0.00011525,2]
[398264374,1765475438578,-300.0,0.00011525,2]
[398264376,1765475438588,-300.0,0.00011525,2]
[398264378,1765475438597,-300.0,0.00011525,2]
[398264380,1765475438607,-793.9908087,0.00011556,2]
[398264382,1765475438616,-4224.4628999,0.00011556,2]
[398264384,1765475438626,-73.24557668,0.000116,2]
[398264423,1765475440557,-80.40442332,0.000116,2]
[398264425,1765475440567,-3659.84176862,0.00011614,2]
[398264426,1765475440577,-153.65,0.000117,2]
[398264427,1765475440586,-600.0,0.00011754,2]
[398264428,1765475440596,-169.69,0.000119,2]
[398264429,1765475440606,-153.65,0.000119,2]
[398264430,1765475440615,-186.15016719,0.000119,2]
[398264431,1765475440625,-19217.22043398,0.00012,2]
[398264432,1765475440634,-153.65,0.00012,2]
[398264433,1765475440643,-153.65,0.000121,2]
[398264434,1765475440653,-222.62952367,0.00012175,2]
[398264435,1765475440663,-295.30641892,0.00012236,2]
[398264436,1765475440673,-280.44695057,0.000123,2]
[398264437,1765475440683,-153.65,0.000123,2]
[398264438,1765475440692,-151.0,0.00012368,2]
[398264439,1765475440701,-500.0,0.00012375,2]
[398264440,1765475440711,-500.0,0.00012375,2]
[398264441,1765475440720,-500.0,0.00012375,2]
[398264442,1765475440730,-565.44284541,0.00012375,2]
[398264443,1765475440739,-500.0,0.00012375,2]
[398264444,1765475440748,-500.0,0.00012375,2]
[398264445,1765475440758,-500.0,0.00012375,2]
[398264446,1765475440767,-500.0,0.00012375,2]
[398264447,1765475440776,-500.0,0.00012375,2]
[398264448,1765475440785,-500.0,0.00012375,2]
[398264449,1765475440794,-500.0,0.00012375,2]
[398264450,1765475440803,-500.0,0.00012375,2]
[398264451,1765475440813,-500.0,0.00012375,2]
[398264452,1765475440822,-163.92511055,0.00012375,2]
[398264453,1765475440832,-500.0,0.00012375,2]
[398264454,1765475440842,-500.0,0.00012375,2]
[398264455,1765475440853,-500.0,0.00012375,2]
[398264456,1765475440862,-500.0,0.00012375,2]
[398264457,1765475440871,-500.0,0.00012375,2]
[398264458,1765475440880,-199.04075326,0.00012375,2]
[398264459,1765475440890,-545.27203261,0.00012375,2]
[398264460,1765475440899,-500.0,0.00012375,2]
[398264461,1765475440908,-500.0,0.00012375,2]
[398264462,1765475440919,-500.0,0.00012375,2]
[398264463,1765475440928,-500.0,0.00012375,2]
[398264464,1765475440937,-487.0728187,0.00012375,2]
[398264465,1765475440946,-500.0,0.00012375,2]
[398264466,1765475440955,-500.0,0.00012375,2]
[398264467,1765475440964,-500.0,0.00012375,2]
[398264468,1765475440973,-455.23388261,0.00012375,2]
[398264469,1765475440982,-27279.79278401,0.00012376,2]
[398264470,1765475441007,-2141.61632335,0.00012376,2]
[398264471,1765475441018,-274.55978238,0.00012376,2]
[398264472,1765475441028,-263.98648147,0.00012376,2]
[398264473,1765475441039,-1277.32845475,0.00012376,2]
[398264481,1765475444768,-470.31115789,0.00012376,2]
[398264482,1765475444783,-419.18467264,0.00012376,2]
[398264483,1765475445504,-5105.55717501,0.00012376,2]
[398264484,1765475445517,-829.53625222,0.00012376,2]
[398264485,1765475445529,-641.35815235,0.00012376,2]
[398264498,1765475446510,-42660.72056721,0.00012376,2]
[398264499,1765475446522,-6740.00000014,0.00012376,2]
[398264500,1765475446533,-697.71665078,0.00012376,2]
[398264502,1765475469190,153.99,0.0001,2]
[398264503,1765475515726,150.0,7.397e-05,2]
[398264504,1765475516288,150.0,7.75e-05,2]
[398264505,1765475516700,150.0,8.102e-05,2]
[398264506,1765475517610,150.0,8.454e-05,2]
[398264507,1765475518033,150.0,8.807e-05,2]
[398264508,1765475518456,150.0,9.159e-05,2]
[398264509,1765475518859,150.0,9.511e-05,2]
[398264510,1765475525519,154.15,0.0001,2]
[398264511,1765475532833,2229.0,0.0001,2]
[398264512,1765475591828,154.07,0.0001,2]
[398264515,1765475644620,154.15,0.0001,2]
[398264516,1765475652070,2589.0,0.0001,2]
[398264518,1765475716940,154.07,0.0001,2]
[398264519,1765475765480,154.15,0.0001,2]
[398264520,1765475772076,2674.0,0.0001,2]
[398264524,1765475832789,154.07,0.0001,2]
[398264525,1765475883307,2508.0,0.0001,2]
[398264526,1765475885976,154.15,0.0001,2]
[398264527,1765475951500,154.07,0.0001,2]
[398264528,1765476004735,154.15,0.0001,2]
[398264529,1765476079818,154.07,0.0001,2]
[398264530,1765476124989,153.28,0.0001,2]
[398264531,1765476191978,158.66,0.0001,2]
[398264532,1765476215138,3005.0,0.000165,59]
[398264533,1765476244343,153.01,0.0001,2]
[398264535,1765476310024,157.72,0.0001,2]
[398264539,1765476365064,152.75,0.0001,2]
[398264540,1765476428495,157.09,0.0001,2]
[398264541,1765476486074,152.48,0.0001,2]
[398264542,1765476547795,156.63,0.0001,2]
[398264543,1765476606289,152.19,0.0001,2]
[398264572,1765476632478,-319.74,0.0001025,2]
[398264578,1765476632532,-244.26,0.0001025,2]
[398264579,1765476632541,-208.41798927,0.00010275,2]
[398264581,1765476632551,-152.19,0.000103,2]
[398264583,1765476632560,-126.0983612,0.000106,2]
[398264585,1765476632571,-26.0916388,0.000106,2]
[398264587,1765476632581,-250.0,0.00010614,2]
[398264589,1765476632590,-152.19,0.000109,2]
[398264591,1765476632600,-152.19,0.000112,2]
[398264593,1765476632609,-293.6928635,0.00011252,2]
[398264595,1765476632619,-631.0,0.00011378,2]
[398264596,1765476632628,-2156.0,0.00011378,2]
[398264598,1765476632637,-415.0,0.00011378,2]
[398264600,1765476632646,-152.19,0.000115,2]
[398264601,1765476632656,-300.0,0.00011604,2]
[398264602,1765476632666,-300.0,0.00011604,2]
[398264603,1765476632675,-300.0,0.00011604,2]
[398264604,1765476632685,-300.0,0.00011604,2]
[398264605,1765476632695,-300.0,0.00011604,2]
[398264606,1765476632704,-300.0,0.00011604,2]
[398264607,1765476632713,-300.0,0.00011604,2]
[398264608,1765476632722,-300.0,0.00011604,2]
[398264609,1765476632732,-300.0,0.00011604,2]
[398264610,1765476632741,-300.0,0.00011604,2]
[398264611,1765476632750,-300.0,0.00011604,2]
[398264612,1765476632760,-300.0,0.00011604,2]
[398264613,1765476632770,-300.0,0.00011604,2]
[398264614,1765476632779,-300.0,0.00011604,2]
[398264615,1765476632789,-300.0,0.00011604,2]
[398264616,1765476632798,-230.51249218,0.0001173,2]
[398264617,1765476632807,-152.19,0.000118,2]
[398264618,1765476632817,-600.0,0.00011835,2]
[398264619,1765476632826,-152.19,0.000122,2]
[398264620,1765476632835,-186.13123096,0.00012205,2]
[398264621,1765476632845,-295.30641892,0.00012236,2]
[398264622,1765476632855,-151.0,0.00012269,2]
[398264623,1765476632865,-500.0,0.00012275,2]
[398264624,1765476632874,-500.0,0.00012275,2]
[398264625,1765476632883,-427.059526,0.00012275,2]
[398264626,1765476632892,-500.0,0.00012275,2]
[398264627,1765476632901,-500.0,0.00012275,2]
[398264628,1765476632910,-500.0,0.00012275,2]
[398264629,1765476632919,-500.0,0.00012275,2]
[398264630,1765476632929,-500.0,0.00012275,2]
[398264631,1765476632937,-500.0,0.00012275,2]
[398264632,1765476632946,-500.0,0.00012275,2]
[398264633,1765476632956,-173.75677017,0.00012275,2]
[398264634,1765476632965,-227.25244807,0.00012275,2]
[398264635,1765476632974,-500.0,0.00012275,2]
[398264636,1765476632984,-500.0,0.00012275,2]
[398264637,1765476632993,-500.0,0.00012275,2]
[398264638,1765476633003,-500.0,0.00012275,2]
[398264639,1765476633012,-500.91006106,0.00012275,2]
[398264640,1765476633022,-500.0,0.00012275,2]
[398264641,1765476633031,-350.0,0.00012275,2]
[398264642,1765476633041,-500.0,0.00012275,2]
[398264643,1765476633050,-500.0,0.00012275,2]
[398264644,1765476633059,-500.0,0.00012275,2]
[398264645,1765476633069,-500.0,0.00012275,2]
[398264646,1765476633078,-245.93322733,0.00012275,2]
[398264647,1765476633088,-37016.62495186,0.00012276,2]
[398264667,1765476638714,-2472.99554256,0.00012276,2]
[398264670,1765476638730,-961.71379467,0.00012276,2]
[398264672,1765476638741,-1703.45085993,0.00012276,2]
[398264674,1765476638752,-28100.02140548,0.00012276,2]
[398264676,1765476638763,-435.0,0.00012276,2]
[398264679,1765476638784,-1442.73549134,0.00012276,2]
[398264681,1765476638795,-1123.836,0.00012276,2]
[398264728,1765476640699,-528.89051107,0.00012276,2]
[398264729,1765476640710,-890.80323467,0.00012276,2]
[398264730,1765476640756,-733.73686278,0.00012276,2]
[398264731,1765476640768,-310.27,0.00012276,2]
[398264732,1765476640778,-8890.0,0.00012276,2]
[398264788,1765476645227,-1959.42071875,0.00012276,2]
[398264795,1765476646652,-2357.72674961,0.00012276,2]
[398264796,1765476646664,-54943.5308389,0.00012276,2]
[398264797,1765476646708,-778.77913156,0.00012276,2]
[398264798,1765476664914,152.18,0.0001,2]
[398264800,1765476724674,152.18,0.0001,2]
[398264801,1765476785131,152.18,0.0001,2]
[398264802,1765476844604,152.18,0.0001,2]
[398264805,1765476904336,152.18,0.0001,2]
[398264809,1765477211960,7492.0,0.0001,2]
[398264811,1765477323403,2508.0,0.0001,2]
[398264812,1765477344567,1121.34034243,0.0001919,99]
[398264813,1765477345128,1121.34034243,0.0001919,99]
[398264814,1765477345758,1121.34034243,0.0001919,99]
[398264815,1765477346597,1121.34034243,0.0001919,99]
[398264816,1765477347681,1121.34034243,0.0001919,99]
[398264817,1765477348114,1121.34034243,0.0001919,99]
[398264818,1765477348651,1121.34034243,0.0001919,99]
[398264819,1765477349036,1121.34034243,0.0001919,99]
[398264820,1765477349652,1121.34034243,0.0001919,99]
[398264821,1765477349931,1121.34034243,0.0001919,99]
[398264822,1765477350238,1121.34034243,0.0001919,99]
[398264823,1765477350769,1121.34034243,0.0001919,99]
[398264824,1765477351198,1121.34034243,0.0001919,99]
[398264825,1765477351614,1121.34034243,0.0001919,99]
[398264826,1765477352253,1121.34034243,0.0001919,99]
[398264827,1765477352689,1121.34034243,0.0001919,99]
[398264828,1765477353096,1121.34034243,0.0001919,99]
[398264829,1765477353504,1121.34034243,0.0001919,99]
[398264830,1765477353938,1121.34034243,0.0001919,99]
[398264831,1765477354383,1121.34034243,0.0001919,99]
[398264832,1765477354981,1121.34034243,0.0001919,99]
[398264833,1765477355382,1121.34034243,0.0001919,99]
[398264834,1765477355792,1121.34034243,0.0001919,99]
[398264835,1765477356189,1121.34034243,0.0001919,99]
[398264836,1765477356589,1121.34034243,0.0001919,99]
[398264837,1765477356984,1121.34034243,0.0001919,99]
[398264838,1765477357388,1121.34034243,0.0001919,99]
[398264839,1765477357798,1121.34034243,0.0001919,99]
[398264840,1765477358216,1121.34034243,0.0001919,99]
[398264841,1765477359104,1121.34034243,0.0001919,99]
[398264842,1765477359156,1121.34034243,0.0001919,99]
[398264843,1765477359432,1121.34034243,0.0001919,99]
[398264844,1765477359844,1121.34034243,0.0001919,99]
[398264845,1765477360246,1121.34034243,0.0001919,99]
[398264846,1765477360646,1121.34034243,0.0001919,99]
[398264847,1765477361071,1121.34034243,0.0001919,99]
[398264848,1765477361458,1121.34034243,0.0001919,99]
[398264849,1765477361871,1121.34034243,0.0001919,99]
[398264850,1765477362436,1121.34034243,0.0001919,99]
[398264851,1765477362832,1121.34034243,0.0001919,99]
[398264852,1765477363231,1121.34034243,0.0001919,99]
[398264853,1765477363627,1121.34034243,0.0001919,99]
[398264854,1765477364023,1121.34034243,0.0001919,99]
[398264855,1765477364449,1121.34034243,0.0001919,99]
[398264856,1765477364842,1121.34034243,0.0001919,99]
[398264857,1765477365258,1121.34034243,0.0001919,99]
[398264858,1765477365655,1121.34034243,0.0001919,99]
[398264859,1765477366043,1121.34034243,0.0001919,99]
[398264860,1765477366445,1121.34034243,0.0001919,99]
[398264929,1765477831770,-1559.12554849,0.00010959,2]
[398264989,1765477837719,-5502.1121329,0.00010959,2]
[398264991,1765477837731,-2086.88436601,0.00010959,2]
[398264993,1765477837741,-574.0,0.00010959,2]
[398264995,1765477837759,-228.94114292,0.00011145,2]
[398264997,1765477837771,-300.0,0.0001133,2]
[398264999,1765477837789,-226.0,0.0001133,2]
[398265001,1765477837808,-185.0,0.00011331,2]
[398265002,1765477837819,-237.23206285,0.00011513,2]
[398265003,1765477837830,-408.9488659,0.00011606,2]
[398265004,1765477837842,-776.68808795,0.00011606,2]
[398265005,1765477837870,-970.36304615,0.00011606,2]
[398265006,1765477837881,-184.469,0.00011606,2]
[398265007,1765477837890,-415.0,0.00011606,2]
[398265008,1765477837900,-734.12043774,0.00011846,2]
[398265009,1765477837910,-4095.46808521,0.00011846,2]
[398265010,1765477837922,-8446.05781519,0.00011846,2]
[398265011,1765477837932,-1000.0,0.00012,2]
[398265012,1765477837941,-186.13123096,0.00012075,2]
[398265013,1765477837951,-198.22265888,0.00012128,2]
[398265014,1765477837961,-151.0,0.00012169,2]
[398265015,1765477837970,-252.62613244,0.00012169,2]
[398265016,1765477837979,-500.0,0.00012175,2]
[398265017,1765477837988,-648.9416682,0.00012175,2]
[398265018,1765477837997,-500.0,0.00012175,2]
[398265019,1765477838009,-500.0,0.00012175,2]
[398265020,1765477838018,-500.0,0.00012175,2]
[398265021,1765477838028,-500.0,0.00012175,2]
[398265022,1765477838037,-500.0,0.00012175,2]
[398265023,1765477838047,-500.0,0.00012175,2]
[398265024,1765477838056,-500.0,0.00012175,2]
[398265025,1765477838065,-500.0,0.00012175,2]
[398265026,1765477838075,-500.0,0.00012175,2]
[398265027,1765477838084,-184.11071401,0.00012175,2]
[398265028,1765477838093,-500.0,0.00012175,2]
[398265029,1765477838103,-500.0,0.00012175,2]
[398265030,1765477838112,-495.63704274,0.00012175,2]
[398265031,1765477838121,-500.0,0.00012175,2]
[398265032,1765477838131,-450.0,0.00012175,2]
[398265033,1765477838140,-169.69101034,0.00012175,2]
[398265034,1765477838149,-354.74752903,0.00012176,2]
[398265040,1765477839896,-27902.157325,0.00012176,2]
[398265118,1765477845889,-8070.2536406,0.00012176,2]
[398265122,1765477865310,150.0,8.455e-05,2]
[398265125,1765477930039,150.0,7.744e-05,2]
[398265153,1765479031888,-573.0,0.00010878,2]
[398265154,1765479031899,-189.9948919,0.00010878,2]
[398265155,1765479031909,-204.1643081,0.00010996,2]
[398265195,1765479037946,-188.48910358,0.00010905,2]
[398265197,1765479037956,-23.4864783,0.00010996,2]
[398265199,1765479037966,-1920.43746283,0.00011114,2]
[398265203,1765479038005,-667.08320199,0.00011114,2]
[398265209,1765479038061,-108.29849068,0.00011114,2]
[398265211,1765479038073,-300.0,0.00011299,2]
[398265213,1765479038083,-300.0,0.00011299,2]
[398265215,1765479038094,-300.0,0.00011299,2]
[398265217,1765479038106,-1200.0,0.000113,2]
[398265219,1765479038115,-300.0,0.000113,2]
[398265221,1765479038128,-5882.7124723,0.00011301,2]
[398265222,1765479038138,-188.55829913,0.00011479,2]
[398265223,1765479038148,-881.06196107,0.00011846,2]
[398265224,1765479038157,-2156.0,0.00011878,2]
[398265225,1765479038168,-514.84070869,0.00012069,2]
[398265226,1765479038178,-151.0,0.00012069,2]
[398265227,1765479038187,-5898.92806813,0.00012076,2]
[398265228,1765479038199,-1813.69082781,0.00012076,2]
[398265243,1765479040496,-338.94110605,0.00010905,2]
[398265244,1765479040506,-17209.9158684,0.00012076,2]
[398265334,1765479045223,-1698.76,0.00012076,2]
[398265337,1765479045235,-104765.65232312,0.00012076,2]
[398265423,1765479045979,-9096.27027205,0.00012076,2]
[398265428,1765479046033,-18181.81951805,0.00012076,2]
[398265462,1765479103951,150.0,7.292e-05,2]
[398265463,1765479104337,150.0,7.954e-05,2]
[398266619,1765479263817,218.17990097,0.0001919,99]
[398266620,1765479264382,218.17990097,0.0001919,99]
[398266621,1765479264850,218.17990097,0.0001919,99]
[398266622,1765479265350,218.17990097,0.0001919,99]
[398266623,1765479265751,218.17990097,0.0001919,99]
[398266624,1765479266318,218.17990097,0.0001919,99]
[398266625,1765479266802,218.17990097,0.0001919,99]
[398266626,1765479399662,162045.29423106,0.0001919,120]
[398266751,1765479757476,3214.0,0.0001,2]
[398266779,1765480232033,-959.33713148,0.00010949,2]
[398266780,1765480232089,-240.66286852,0.00010949,2]
[398266781,1765480232099,-1200.0,0.0001095,2]
[398266782,1765480232109,-39.33715648,0.0001095,2]
[398266805,1765480238093,-260.66284352,0.0001095,2]
[398266806,1765480238102,-574.0,0.0001095,2]
[398266808,1765480238113,-166.33714238,0.00010951,2]
[398266879,1765480240346,-59.9833253,0.00010951,2]
[398266880,1765480240356,-12322.0368183,0.00010951,2]
[398266882,1765480240369,-705.06098144,0.00011331,2]
[398266884,1765480240379,-500.0,0.00011875,2]
[398266886,1765480240389,-454.25916774,0.00011875,2]
[398266887,1765480240399,-500.0,0.00011875,2]
[398266889,1765480240409,-500.0,0.00011875,2]
[398266891,1765480240419,-500.0,0.00011875,2]
[398266893,1765480240430,-500.0,0.00011875,2]
[398266895,1765480240445,-261.94592992,0.00011875,2]
[398266896,1765480240455,-500.0,0.00011875,2]
[398266898,1765480240466,-500.0,0.00011875,2]
[398266900,1765480240476,-500.0,0.00011875,2]
[398266902,1765480240486,-500.0,0.00011875,2]
[398266903,1765480240495,-478.66015429,0.00011875,2]
[398266905,1765480240507,-21.33984571,0.00011875,2]
[398266907,1765480240517,-500.0,0.00011875,2]
[398266909,1765480240527,-500.0,0.00011875,2]
[398266910,1765480240537,-500.0,0.00011875,2]
[398266912,1765480240547,-500.0,0.00011875,2]
[398266914,1765480240556,-500.0,0.00011875,2]
[398266916,1765480240566,-500.0,0.00011875,2]
[398266917,1765480240576,-500.0,0.00011875,2]
[398266919,1765480240586,-500.0,0.00011875,2]
[398266921,1765480240596,-500.0,0.00011875,2]
[398266923,1765480240605,-48.63846289,0.00011875,2]
[398266925,1765480240616,-451.36153711,0.00011875,2]
[398266926,1765480240626,-240.49464316,0.00011875,2]
[398266928,1765480240635,-443.86766135,0.00011875,2]
[398266930,1765480240645,-500.0,0.00011875,2]
[398266932,1765480240655,-500.0,0.00011875,2]
[398266933,1765480240664,-500.47522667,0.00011875,2]
[398266935,1765480240673,-500.0,0.00011875,2]
[398266937,1765480240683,-500.0,0.00011875,2]
[398266939,1765480240692,-500.0,0.00011875,2]
[398266940,1765480240701,-450.2293676,0.00011875,2]
[398266942,1765480240711,-192.91532501,0.00011875,2]
[398267066,1765480245312,-307.08467499,0.00011875,2]
[398267067,1765480245322,-177.2070802,0.00011875,2]
[398267068,1765480245334,-322.7929198,0.00011875,2]
[398267069,1765480245343,-500.0,0.00011875,2]
[398267070,1765480245353,-500.0,0.00011875,2]
[398267071,1765480245363,-500.0,0.00011875,2]
[398267072,1765480245374,-500.0,0.00011875,2]
[398267073,1765480245384,-327.07808992,0.00011875,2]
[398267089,1765480343142,150.0,7.29e-05,2]
[398267090,1765480343542,150.0,7.953e-05,2]
[398267091,1765480344126,150.0,8.615e-05,2]
[398267092,1765480409351,150.0,7.299e-05,2]
[398267093,1765480410234,150.0,7.963e-05,2]
[398267094,1765480410654,150.0,8.626e-05,2]
[398267095,1765480411050,150.0,9.29e-05,2]
[398267096,1765480411466,150.0,9.953e-05,2]
[398267097,1765480483025,150.0,7.286e-05,2]
[398267098,1765480483440,150.0,7.949e-05,2]
[398267099,1765480483829,150.0,8.611e-05,2]
[398267100,1765480484254,150.0,9.273e-05,2]
[398267101,1765480484652,150.0,9.936e-05,2]
[398267103,1765480555366,150.0,7.284e-05,2]
[398267104,1765480555992,150.0,7.947e-05,2]
[398267105,1765480556176,150.0,8.609e-05,2]
[398267106,1765480556598,150.0,9.271e-05,2]
[398267107,1765480557001,150.0,9.933e-05,2]
[398267108,1765480571902,2229.0,0.0001,2]
[398267110,1765480690925,2589.0,0.0001,2]
[398267111,1765480810812,2674.0,0.0001,2]
[398267112,1765480924724,2508.0,0.0001,2]
[398267252,1765481438370,-6000.0,0.000104,2]
[398267253,1765481438380,-566.0,0.000104,2]
[398267254,1765481438389,-257.16965098,0.0001054,2]
[398267255,1765481438399,-300.0,0.00010607,2]
[398267256,1765481438409,-300.0,0.00010607,2]
[398267257,1765481438419,-300.0,0.00010607,2]
[398267258,1765481438429,-300.0,0.00010607,2]
[398267259,1765481438438,-300.0,0.00010607,2]
[398267260,1765481438448,-300.0,0.00010607,2]
[398267261,1765481438458,-300.0,0.00010607,2]
[398267262,1765481438469,-300.0,0.00010607,2]
[398267263,1765481438480,-300.0,0.00010607,2]
[398267264,1765481438490,-300.0,0.00010607,2]
[398267265,1765481438500,-300.0,0.00010607,2]
[398267266,1765481438510,-300.0,0.00010607,2]
[398267267,1765481438520,-300.0,0.00010607,2]
[398267268,1765481438531,-300.0,0.00010607,2]
[398267269,1765481438541,-300.0,0.00010607,2]
[398267270,1765481438550,-301.1333271,0.00010959,2]
[398267271,1765481438560,-765.7932451,0.00010963,2]
[398267272,1765481438570,-211.79594261,0.00010983,2]
[398267273,1765481438579,-380.851464,0.00010983,2]
[398267274,1765481438589,-1200.0,0.00011093,2]
[398267275,1765481438599,-655.61850874,0.00011094,2]
[398267276,1765481438608,-300.0,0.00011457,2]
[398267277,1765481438618,-1200.0,0.00011459,2]
[398267278,1765481438628,-33382.3650824,0.0001146,2]
[398267279,1765481438638,-291.8273836,0.0001146,2]
[398267280,1765481438648,-1152.9287067,0.0001146,2]
[398267281,1765481438658,-595.4931065,0.0001146,2]
[398267282,1765481438668,-600.0,0.00011688,2]
[398267283,1765481438678,-3062.17877599,0.00011723,2]
[398267284,1765481438688,-500.0,0.00011774,2]
[398267285,1765481438697,-500.0,0.00011774,2]
[398267286,1765481438707,-500.0,0.00011774,2]
[398267287,1765481438716,-500.0,0.00011774,2]
[398267288,1765481438726,-338.68500698,0.00011774,2]
[398267289,1765481438735,-500.0,0.00011774,2]
[398267290,1765481438745,-482.15557583,0.00011774,2]
[398267291,1765481438754,-500.0,0.00011774,2]
[398267292,1765481438764,-381.95348253,0.00011774,2]
[398267293,1765481438773,-500.0,0.00011774,2]
[398267294,1765481438783,-500.0,0.00011774,2]
[398267295,1765481438792,-500.0,0.00011774,2]
[398267296,1765481438803,-500.0,0.00011774,2]
[398267297,1765481438813,-500.0,0.00011774,2]
[398267298,1765481438827,-500.0,0.00011774,2]
[398267299,1765481438837,-500.0,0.00011774,2]
[398267300,1765481438847,-500.0,0.00011774,2]
[398267301,1765481438858,-512.85145153,0.00011774,2]
[398267302,1765481438867,-500.0,0.00011774,2]
[398267303,1765481438881,-500.0,0.00011774,2]
[398267304,1765481438891,-500.0,0.00011774,2]
[398267305,1765481438902,-500.0,0.00011774,2]
[398267306,1765481438912,-500.0,0.00011774,2]
[398267307,1765481438922,-500.0,0.00011774,2]
[398267308,1765481438931,-500.0,0.00011774,2]
[398267309,1765481438941,-500.0,0.00011774,2]
[398267310,1765481438951,-500.0,0.00011774,2]
[398267311,1765481438961,-500.0,0.00011774,2]
[398267312,1765481438971,-500.0,0.00011774,2]
[398267313,1765481438980,-500.0,0.00011774,2]
[398267314,1765481438990,-497.02964731,0.00011774,2]
[398267315,1765481439000,-500.0,0.00011774,2]
[398267316,1765481439010,-500.0,0.00011774,2]